Workbook

Sheet coverSheet
A3: ISO 11812:2001 Small craft - Watertight cockpits and quick-draining cockpits
A5: Manufacturer:
A6: Signatory, Name:
A7: Signatory, Title:
A8: Phone:
A9: Email:
A10: WWW:
A11: CIN Model Year:
A12: Model Name:
A14: This calculation sheet is provided by IMCI "as is" and any express or implied warranties, including, but not limited to, the implied warranties of fitness for a particular purpose are disclaimed.
A17: blue cells are derived values
A18: yellow cells require data input
A23: - These worksheets checks the requirements for cockpit drainage solely with the quick method of calculation for cockpits as described in clause 7.8.4 of ISO 11812 for single level cockpits. Annex C or other methods may give other results for the required drainage area. No multilevel cockpit calculation.
A25: - Simplified calculation for drain pipes with a diameter between 25mm and 150mm; bigger ones cannot be calculated with this tool.
A27: - Please attach other detailed information as appropriate, e.g. photos, sketches etc. for sill height, openings, companion way doors, practical tests etc.
A29: - Please send questions, found errors, typos, mistakes, ect. directly to ralf.dewender@imci.org or to the headoffice with info@imci.org; every comment helps us to provides you with a better version.

Sheet Worksheet 1
L1: Comments
A2: ISO 11812:2001 Small craft - Watertight cockpits and quick-draining cockpits | M2: Derived values
A3: WORKSHEET No. 1 data entry | M3: Input values
A4: ISO 11812 en190916
A5: =CONCATENATE(coverSheet!B5," ",coverSheet!B12) -> 
AC6: Power
A7: Design Category intended: | F7: Monohull / Multihull: | I7: Boat Type | AC7: Sail
A9: Item | G9: Symbol | H9: Unit | I9: Value | J9: Ref. | BC9: list: | BD9: list: | BE9: list:
A10: Length of hull as in ISO 8666 | G10: LH | H10: m | J10: 3.2 | AC10: A | BC10: A | BD10: Monohull | BE10: OB
A11: Beam of hull (max) | G11: Bmax | H11: m | J11: 3.3 | AC11: B | BC11: B | BD11: Multihull
A12: Freeboard amidships | G12: FM | H12: m | J12: 3.5 | L12: Additional drains with different diameter | AC12: C | BC12: C
A13: Cockpit Volume | G13: VC | H13: m³ | J13: 3.27 | M13: number | N13: diameter [mm] | P13: area of one drain [mm²] | AC13: D | BC13: D
A14: Cockpit water retention height | G14: hC | H14: m | J14: 3.15 | L14: drainsize 2 | P14: =(N14/2)^2*PI() -> 0
A15: Cockpit bottom height | G15: hB | H15: m | J15: 3.16 | L15: drainsize 3 | P15: =(N15/2)^2*PI() -> 0
A16: Drain lenght | H16: m | L16: sum of additional circular drain area | O16: =M14*P14+M15*P15 -> 0 | P16: mm²
A17: Number of drains | H17: . /. | L17: Freeing ports or non-circular drains
A18: Actual Drain diameter | H18: mm | L18: please insert number and size of rectangular openings/drains
A19: Drain with / without elbow | M19: number | N19: length[mm] | O19: width[mm] | P19: area of one drain [mm²] | AC19: none
A20: Drain below / above waterline | J20: 7.8.4.3 | L20: opening 1 | P20: =N20*O20 -> 0 | Q20: clause 7.4.1 | AC20: without flaps
A21: Area of additionall openings (transom door, freeing port, u.a.) | H21: mm² | I21: =O23+L25+O16 -> 0 | L21: opening 2 | P21: =N21*O21 -> 0 | Q21: minimum dimensions are 20mm in one direction and at minimum an area of 500mm² !
A22: Freeing port with / without flaps | L22: opening 3 | P22: 0 | AB22: circular | AC22: with flaps
A23: Actual height of fixed sill | G23: hS,min/2 | H23: m | J23: 3.25 | L23: sum of rectangular drain area | O23: =M20*P20+M21*P21+M22*P22 -> 0 | P23: mm² | AB23: other shapes
A24: Actual semifixed sill (mobile part) height | G24: hS,min | H24: m | J24: 3.25 | L24: Drain area of any other openings (pls insert only sum of all drainage areas which are not circular or rectangular)
A25: Degree of watertightness of the closing appliances in the cockpit (if applicable) | N25: mm² | AC25: 1
A26: Closing appliances on bottom and horizontal areas; actual degree of watertightness | J26: 9.2.1 | AC26: 2
A27: Closing appliances on cockpit sides up to hS,min; actual degree of watertightness | J27: 9.2.1 | AC27: 3
A28: Closing appl. on cockpit sides betw. hS,min and 2 hS,min a; actual degree of watertightness | J28: 9.2.1 | AC28: 4
A29: Closing appliances on cockpit sides above 2 hS,min a; actual degree of watertightness | J29: 9.2.1 | AC29: n.a.
A30: Requirement results, general | G30: Symbol | H30: Unit | I30: Value | J30: Ref. | L30: 7.8.4.4. (NOTE) The time calculations given in Table 4 are for a draining time between a height of water hC = 0,40 m to a remaining 0,10 m of water, with two drains, each one 1,2 m long and a coefficient of head loss at the entry K = 0,06 (see D.3). For different values of hC, the draining time is smaller (multiplied by coefficient C1 of Table C.1). The draining time for a freeing port fitted with flaps is considered as 150 % of the draining time without a flap, this assessment may be adjusted by a test. For a non-circular drain section, the section area shall be the same as that of a circular drain. | AC30: with
A31: Minimum cockpit bottom height | G31: hB, min | H31: m | I31: =IF(I15="","",'cockpit calculation ISO 11812'!D34) ->  | J31: 3.17 | AC31: without
A32: Cockpit volume coefficient | G32: kC | H32: . /. | I32: ='cockpit calculation ISO 11812'!D36 -> not defined | J32: 3.28
A33: Acceptable draining time | G33: t* max | H33: min | I33: ='cockpit calculation ISO 11812'!D37 -> not defined | J33: 7.2 | AC33: above
A34: Acceptable draining time, corr. (tmax with a max. of 5min) | G34: t max | H34: min | I34: ='cockpit calculation ISO 11812'!D38 -> 5.000 | J34: 7.2 | AC34: below
A35: Reference time | G35: t ref | H35: min | I35: ='cockpit calculation ISO 11812'!D39 -> 0.000 | J35: 7.8.4.2
A36: Results, drain requirements | H36: Unit | I36: Value | J36: Ref.
A37: Drain diameter, required Table 4 value | H37: mm | I37: =IF(AND(I18="",I21=""),"",'cockpit calculation ISO 11812'!D41) -> FALSE | J37: 7.8.4.4
A38: Determination of coefficient C1 | H38: . /. | I38: =IF(I14="","",'cockpit calculation ISO 11812'!G45) ->  | J38: annex C.4
A39: Determination of coefficient C2 or C3 | H39: . /. | I39: =IF(I16="","",IF('cockpit calculation ISO 11812'!G46="",'cockpit calculation ISO 11812'!G47,'cockpit calculation ISO 11812'!G46)) ->  | J39: annex C.5
A40: Drain diameter, corrected value with C1,C2 and C3 | H40: mm | I40: =IF(AND(I18="",I21=""),"",'cockpit calculation ISO 11812'!D42) -> FALSE | J40: Table C.2
A41: Cross section, required | H41: mm² | I41: =IF('cockpit calculation ISO 11812'!D43=0,"***",'cockpit calculation ISO 11812'!D43) -> *** | J41: Table C.2 | L41: *** Please insert number of drains, elbows and above/below for circular drains
A42: Actual cross section | H42: mm² | I42: ='cockpit calculation ISO 11812'!D46 -> 0.0 | L42: or freeing ports with or without flaps
A43: Results, drainage area and cockpit bottom height | I43: Pass/Fail | L43: ...otherwise the sheet will not calculate correctly !
A44: Cockpit bottom height | I44: =IF(I15="","",IF(I15>=I31,"Pass","Fail")) ->  | J44: 6.1 Table 2
A45: Drainage cross section | I45: =IF(AND(I18="",I21=""),"",IF(I42>=I41,"Pass","Fail")) -> Fail | J45: Annex C
A46: Results, sill heights | H46: req. | I46: Pass/Fail
A47: Height of fixed sill | H47: =IF(I23="","",'cockpit calculation ISO 11812'!D143) ->  | I47: =IF(I23="","",IF(I23>=H47,"Pass","Fail")) -> 
A48: Height of semifixed sill | H48: =IF(I24="","",'cockpit calculation ISO 11812'!D149) ->  | I48: =IF(I24="","",IF(I24>=H48,"Pass","Fail")) -> 
A49: Results, degree of watertightness of closing appliances | H49: req. | I49: Pass/Fail | J49: Ref.
A50: Closing appliances on bottom and horizontal areas | H50: 2 | I50: =IF(I26="","",IF(I26="n.a.","n.a.",IF(I26<=H50,"Pass","Fail"))) ->  | J50: 9.2.1 Table 6 | P50: Table 6 — Required degree of watertightness of quick-draining-cockpit closing appliances
A51: Closing appliances on cockpit sides up to hS,min | H51: 2 | I51: =IF(I27="","",IF(I27="n.a.","n.a.",IF(I27<=H51,"Pass","Fail"))) ->  | J51: 9.2.1 Table 6 | P51: Location of the closing appliance in the cockpit | T51: Degree of watertightness
A52: Closing appl. on cockpit sides betw. hS,min and 2 hS,min a | H52: 3 | I52: =IF(I28="","",IF(I28="n.a.","n.a.",IF(I28<=H52,"Pass","Fail"))) ->  | J52: 9.2.1 Table 6 | P52: Closing appliances on bottom and horizontal areas | T52: 2
A53: Closing appliances on cockpit sides above 2 hS,min a | H53: 4 | I53: =IF(I29="","",IF(I29="n.a.","n.a.",IF(I29<=H53,"Pass","Fail"))) ->  | J53: 9.2.1 Table 6 | P53: Closing appliances on cockpit sides up to hS,min | T53: 2
P54: Closing appliances on cockpit sides between hS,min and 2 hS,min a | T54: 3
P55: Closing appliances on cockpit sides above 2 hS,min a | T55: 4
P57: a hS,min being measured from the nearest part of the cockpit bottom.
P58: Informative annex A explains how to consider the main examples of cockpit layout.
P60: Table 5 — Minimum values hS,min for fixed sills and semi-fixed sills
Q62: dimensions in m
P63: Design Category | Q63: Sailing monohulls | T63: Non-sailing boats and sailing multihulls
Q64: Fixed sill | R64: Semi-fixed sill | T64: Fixed sill | U64: Semi-fixed sill
Q65: Top of sill | R65: Top of fixed part | S65: Top of mobile part | T65: Top of sill | U65: Top of fixed part | V65: Top of mobile part
Q67: hS,min | R67: hS,min/2 | S67: hS,min | T67: hS,min | U67: hS,min/2 | V67: hS,min
P68: A | Q68: 0.3 | R68: 0.15 | S68: 0.3 | T68: 0.2 | U68: 0.1 | V68: 0.2
P69: B | Q69: 0.25 | R69: 0.125 | S69: 0.25 | T69: 0.15 | U69: 0.075 | V69: 0.15
P70: C | Q70: 0.15 | R70: 0.075 | S70: 0.15 | T70: 0.1 | U70: 0.05 | V70: 0.1
P71: D | Q71: 0.05 | R71: 0.025 | S71: 0.05 | T71: 0.05 | U71: 0.025 | V71: 0.05
P73: Table 4 — Drain diameter as a function of tref and typical drain arrangement
P74: Typical drain arrangement | Q74: Values of tref (min)
P75: Drain outlet above WL, no elbow | Q75: 8.8 | R75: 5.8 | S75: 4.1 | T75: 3 | U75: 2.3 | V75: 1.8 | W75: 1.5 | X75: 1.2 | Y75: 1 | Z75: 0.9 | AA75: 0.8 | AB75: 0.7 | AC75: 0.5 | AD75: 0.4 | AE75: 0.3 | AF75: 0.3 | AG75: 0.2 | AH75: 0.2 | AI75: 0.2
P76: Drain outlet above WL, two elbows | Q76: 10 | R76: 6.7 | S76: 4.7 | T76: 3.5 | U76: 2.7 | V76: 2.2 | W76: 1.8 | X76: 1.5 | Y76: 1.3 | Z76: 1.1 | AA76: 0.9 | AB76: 0.8 | AC76: 0.6 | AD76: 0.5 | AE76: 0.4 | AF76: 0.4 | AG76: 0.3 | AH76: 0.3 | AI76: 0.2
P77: Drain outlet below WL, no elbow | Q77: 10.8 | R77: 7.2 | S77: 5.1 | T77: 3.9 | U77: 3 | V77: 2.4 | W77: 2 | X77: 1.6 | Y77: 1.4 | Z77: 1.2 | AA77: 1 | AB77: 0.9 | AC77: 0.7 | AD77: 0.6 | AE77: 0.5 | AF77: 0.4 | AG77: 0.3 | AH77: 0.3 | AI77: 0.2
P78: Drain outlet below WL, two elbows | Q78: 11.8 | R78: 7.9 | S78: 5.7 | T78: 4.3 | U78: 3.3 | V78: 2.7 | W78: 2.2 | X78: 1.8 | Y78: 1.5 | Z78: 1.3 | AA78: 1.2 | AB78: 1 | AC78: 0.8 | AD78: 0.6 | AE78: 0.5 | AF78: 0.4 | AG78: 0.4 | AH78: 0.3 | AI78: 0.3
P79: Freeing port above WL, no flap | Q79: 10.1 | R79: 7 | S79: 5.2 | T79: 3.9 | U79: 3.1 | V79: 2.5 | W79: 2.1 | X79: 1.8 | Y79: 1.5 | Z79: 1.3 | AA79: 1.1 | AB79: 1 | AC79: 0.8 | AD79: 0.6 | AE79: 0.5 | AF79: 0.4 | AG79: 0.4 | AH79: 0.3 | AI79: 0.3
P80: Freeings port above WL, with flap | Q80: 15.2 | R80: 10.5 | S80: 7.7 | T80: 5.9 | U80: 4.7 | V80: 3.8 | W80: 3.1 | X80: 2.6 | Y80: 2.2 | Z80: 1.9 | AA80: 1.7 | AB80: 1.5 | AC80: 1.2 | AD80: 0.9 | AE80: 0.8 | AF80: 0.7 | AG80: 0.6 | AH80: 0.5 | AI80: 0.4
P81: Drain diameter d (mm) two drains | Q81: 25 | R81: 30 | S81: 35 | T81: 40 | U81: 45 | V81: 50 | W81: 55 | X81: 60 | Y81: 65 | Z81: 70 | AA81: 75 | AB81: 80 | AC81: 90 | AD81: 100 | AE81: 110 | AF81: 120 | AG81: 130 | AH81: 140 | AI81: 150

Sheet cockpit calculation ISO 11812 (hidden)
A1: Item rel. 0.1.1 / 12.09.07 UHU-Pro / vers. 2 dew 27.05.09 | C1: Short Sign | D1: Value | E1: Unit | F1: value range | G1: ref. Clause | H1: comment | J1: where to find on WS
A3: Manufacturer | B3: =coverSheet!B5 -> 0 | L3: listen
A4: model Designator | B4: =coverSheet!B12 -> 0
B6: assessment date and shortsign
L7: Power
A8: Boat type | D8: ='Worksheet 1'!J7 -> 0 | F8: POWER, SAIL | G8: 3.1.2 | H8: =IF(UPPER(D8) = "POWER", "no comment",(IF(D8 = "SAIL", "no comment", "input boat type Power/Multi, Sail"))) -> input boat type Power/Multi, Sail | L8: Sail
H9: =IF(D8="","Power = POWER","") -> 
H10: =IF(D8="","Multihull = POWER","") ->  | L10: A
C11: =IF(D8="SAIL","As"," ") ->  | E11: =IF(D8="SAIL","m²"," ") ->  | H11: =IF(D8="","Mono Sail = SAIL","") ->  | L11: B
A12: Design Category intended | D12: ='Worksheet 1'!D7 -> 0 | F12: A, B, C, D | H12: =IF(AND((D12<>"A"),(D12<>"B"),(D12<>"C"),(D12<>"D")),"input des. category type","no comment") -> input des. category type | L12: C
L13: D
A14: Cockpit | B14: Cockpit bottom height | C14: hb | D14: =IF('Worksheet 1'!I15="","",'Worksheet 1'!I15) ->  | E14: m | F14: =IF(D14="","",IF(D14>D34,"Pass","Fail")) ->  | G14: 3.16 | H14: =IF(ISBLANK(D14),"input optional","") -> 
B15: Cockpit water retention height | C15: hc | D15: ='Worksheet 1'!I14 -> 0.00 | E15: m | G15: 3.15 | H15: =IF(ISBLANK(D15),"input required","") -> 
B16: Length of hull | C16: Lh | D16: ='Worksheet 1'!I10 -> 0.00 | E16: m | F16: 2,5 to 24 | G16: 3.2, 3.15 | H16: =IF(D16<2.5,"out of range",IF(D16>24,"out of range","no comment")) -> out of range
B17: Beam of hull | C17: Bh | D17: ='Worksheet 1'!I11 -> 0.00 | E17: m | H17: =IF(ISBLANK(D17),"input required","") -> 
B18: Beam of hull (max) | C18: Bmax | D18: ='Worksheet 1'!I11 -> 0.00 | E18: m | G18: 3.3, 3.15 | H18: =IF(ISBLANK(D18),"input required","") -> 
B19: Freeboard amidships | C19: Fm | D19: ='Worksheet 1'!I12 -> 0.00 | E19: m | G19: 3.5, 3.28 | H19: =IF(ISBLANK(D19),"input required","") -> 
B20: Cockpit Volume | C20: Vc | D20: ='Worksheet 1'!I13 -> 0.00 | E20: m³ | G20: 3.27 | H20: =IF(ISBLANK(D20),"Cockpit Volume (below Hc)","") -> 
L21: none
A22: Drainage measurements | B22: Draining section (crossarea) | E22: m² | G22: 7.2 | H22: ="min area: "&0.05*D20&" m²" -> min area: 0 m² | L22: without flaps
B23: shape of the cross-section | H23: =IF(D23="circular","","req. Min. 20mm & 500mm²") -> req. Min. 20mm & 500mm²
B24: Number of drains | D24: ='Worksheet 1'!I17 -> 0 | E24: ./. | H24: insert either diameter and | K24: circular | L24: with flaps
B25: actual Drain diameter | C25: d | D25: ='Worksheet 1'!I18 -> 0.00 | E25: mm | G25: 7.8 | H25: number of drains or/ and | K25: other shapes
B26: additionall openings (transom door, freeing port, u.a.) | D26: ='Worksheet 1'!I21 -> 0.00 | E26: mm² | G26: 7.4.2 | H26: drainage area
B27: freeing port with/without flaps | D27: =IF('Worksheet 1'!I22="","",'Worksheet 1'!I22) ->  | F27: none, with flaps, without flaps | H27: =IF(ISBLANK(D27),"input required","") -> 
B28: Drain with/without elbow | D28: ='Worksheet 1'!I19 -> 0.00 | F28: with, without | H28: =IF(ISBLANK(D28),"input required","") ->  | L28: with
B29: Drain below/above waterline | D29: ='Worksheet 1'!I20 -> 0.00 | F29: below, above | H29: =IF(ISBLANK(D29),"input required","") ->  | L29: without
B30: drain lenght | D30: =IF('Worksheet 1'!I16="","",'Worksheet 1'!I16) ->  | E30: m | H30: =IF(ISBLANK(D30),"input required","") -> 
A31: Drainage requiremets | B31: In upright Position | D31: 98% of volume Vc (excluding any recess) | G31: 7.1.2
B32: In heeled Position | D32: =IF(D8="POWER","At 10° heel, 90 % of Vc",IF(D8="Sail","At 30° heel deck side touches water 90% of Vc","not defined")) -> not defined | G32: 7.1.3 | L32: above
L33: below
A34: Results, general | B34: minimum cockpit bottom height | C34: hb, min | D34: =IF(D12="D",0.05,IF(D12="C",0.075,IF(D12="B",0.1,IF(D12="A",0.15,"not defined")))) -> not defined | E34: m | G34: 6.1
B35: Draining time assessment (by section) | D35: =IF(D22>0.05*D20,"not required","required") -> required | E35: ./. | G35: 7.2
B36: Cockpit volume coefficient | C36: kc | D36: =IF(AND(D16>0,D18>0,D19>0),D20/D16/D18/D19,"not defined") -> not defined | E36: ./. | G36: 3.28
B37: Acceptable draininging time | C37: t* max | D37: =IF(D36>0,IF(D12="A",0.3/D36,IF(D12="B",0.45/D36,IF(D12="C",0.6/D36,IF(D12="D",0.9/D36,"not defined")))),"not defined") -> not defined | E37: min | G37: 7.2, C.2
B38: Acceptable draininging time, corr | C38: t max | D38: =IF(D37>5,5,D37) -> 5 | E38: min | G38: 7.2, C.2 | H38: =IF(D37>5,"time corrected to 5 min","") -> time corrected to 5 min
B39: Reference time | C39: t ref | D39: =IF(D20>0,D38/D20,0) -> 0.000 | E39: min | G39: C.3
F40: tref /(C1C2) or tref /(C1C3) | G40: =D120 -> 
A41: Results, drain requirements | B41: drain diameter, required Table 4 value | C41: d, min | D41: =IF(D27="",'Table 4 calc'!E30,IF(D27<>"none",'Table 4 calc'!E36,'Table 4 calc'!E30)) -> FALSE
B42: drain diameter, exact value with Cx | C42: d, min | D42: =IF(AND(D30<>"",D15<>""),'Table C2'!H18,D41) -> FALSE | E42: mm | G42: 7.4.1 | I42: take value from table 4 (two drains)
B43: rectangular cross section, required | C43: A, min | D43: =(D42/2)^2*PI()*2 -> 0 | E43: mm² | F43: at least 20 mm in one dimension
B44: Protective grids, total cross section, minimum | D44: =1.5*D25*D25/4*3.14152 -> 0 | E44: mm²
F45: C1 | G45: =D66 -> 
A46: actual | B46: actual rectangular cross section | C46: A | D46: =IF(D42="","",(D25/2)^2*PI()*D24+D26) -> 0 | E46: mm² | F46: C2 | G46: =IF(D89<>"",D89,"") ->  | H46: =IF(D42="","fill in req. Drain diameter","") -> 
D47: =IF(D46>=D43, "requirements fulfilled, PASS", "FAIL") -> requirements fulfilled, PASS | F47: C3 | G47: =IF(D112<>"",D112,"") -> 
A50: Table 4 — Drain diameter as a function of tref and typical drain arrangement
A51: Typical drain arrangement | B51: Values of tref (min)
A52: Drain outlet above WL, no elbow | B52: 8.8 | C52: 5.8 | D52: 4.1 | E52: 3 | F52: 2.3 | G52: 1.8 | H52: 1.5 | I52: 1.2 | J52: 1 | K52: 0.9 | L52: 0.8 | M52: 0.7 | N52: 0.5 | O52: 0.4 | P52: 0.3 | Q52: 0.3 | R52: 0.2 | S52: 0.2 | T52: 0.2
A53: Drain outlet above WL, two elbows | B53: 10 | C53: 6.7 | D53: 4.7 | E53: 3.5 | F53: 2.7 | G53: 2.2 | H53: 1.8 | I53: 1.5 | J53: 1.3 | K53: 1.1 | L53: 0.9 | M53: 0.8 | N53: 0.6 | O53: 0.5 | P53: 0.4 | Q53: 0.4 | R53: 0.3 | S53: 0.3 | T53: 0.2
A54: Drain outlet below WL, no elbow | B54: 10.8 | C54: 7.2 | D54: 5.1 | E54: 3.9 | F54: 3 | G54: 2.4 | H54: 2 | I54: 1.6 | J54: 1.4 | K54: 1.2 | L54: 1 | M54: 0.9 | N54: 0.7 | O54: 0.6 | P54: 0.5 | Q54: 0.4 | R54: 0.3 | S54: 0.3 | T54: 0.2
A55: Drain outlet below WL, two elbows | B55: 11.8 | C55: 7.9 | D55: 5.7 | E55: 4.3 | F55: 3.3 | G55: 2.7 | H55: 2.2 | I55: 1.8 | J55: 1.5 | K55: 1.3 | L55: 1.2 | M55: 1 | N55: 0.8 | O55: 0.6 | P55: 0.5 | Q55: 0.4 | R55: 0.4 | S55: 0.3 | T55: 0.3
A56: Freeing port above WL, no flap | B56: 10.1 | C56: 7 | D56: 5.2 | E56: 3.9 | F56: 3.1 | G56: 2.5 | H56: 2.1 | I56: 1.8 | J56: 1.5 | K56: 1.3 | L56: 1.1 | M56: 1 | N56: 0.8 | O56: 0.6 | P56: 0.5 | Q56: 0.4 | R56: 0.4 | S56: 0.3 | T56: 0.3
A57: Freeings port above WL, with flap | B57: 15.2 | C57: 10.5 | D57: 7.7 | E57: 5.9 | F57: 4.7 | G57: 3.8 | H57: 3.1 | I57: 2.6 | J57: 2.2 | K57: 1.9 | L57: 1.7 | M57: 1.5 | N57: 1.2 | O57: 0.9 | P57: 0.8 | Q57: 0.7 | R57: 0.6 | S57: 0.5 | T57: 0.4
A58: Drain diameter d (mm) two drains | B58: 25 | C58: 30 | D58: 35 | E58: 40 | F58: 45 | G58: 50 | H58: 55 | I58: 60 | J58: 65 | K58: 70 | L58: 75 | M58: 80 | N58: 90 | O58: 100 | P58: 110 | Q58: 120 | R58: 130 | S58: 140 | T58: 150
A62: Table C.1 — Values of C1 as a function of h
A63: hC (m) | B63: 0.2 | C63: 0.3 | D63: 0.4 | E63: 0.5 | F63: 0.6 | G63: 0.7 | H63: 0.8 | I63: 0.9 | J63: 1 | K63: 1.1 | L63: 1.2 | M63: 1.3 | N63: 1.4 | O63: 1.5 | P63: 1.6 | Q63: 1.7 | R63: 1.8 | S63: 1.9 | T63: 2
A64: C1 = (t1,hC/t1,04) | B64: 0.83 | C64: 0.98 | D64: 1 | E64: 0.99 | F64: 0.97 | G64: 0.94 | H64: 0.91 | I64: 0.89 | J64: 0.86 | K64: 0.84 | L64: 0.82 | M64: 0.8 | N64: 0.78 | O64: 0.77 | P64: 0.75 | Q64: 0.73 | R64: 0.72 | S64: 0.71 | T64: 0.69
C66: C1 | D66: ='Koeffient C1'!H44 ->  | H66: automatical calculation ; please check
A68: Table C.3 — Values of C2 for hC = 0,4 m and drain outlet above the waterline
A69: Drain lengthL (m) | C69: 0.2 | D69: 0.4 | E69: 0.6 | F69: 0.8 | G69: 1 | H69: 1.2
A70: Drain | B70: 25 | C70: 1.1 | D70: 1.18 | E70: 1.25 | F70: 1.32 | G70: 1.38 | H70: 1.45
B71: 30 | C71: 1.09 | D71: 1.15 | E71: 1.21 | F71: 1.26 | G71: 1.31 | H71: 1.37
A72: diameter | B72: 35 | C72: 1.08 | D72: 1.13 | E72: 1.18 | F72: 1.22 | G72: 1.27 | H72: 1.31
B73: 40 | C73: 1.07 | D73: 1.11 | E73: 1.15 | F73: 1.19 | G73: 1.23 | H73: 1.27
A74: d (mm) = | B74: 45 | C74: 1.07 | D74: 1.1 | E74: 1.14 | F74: 1.17 | G74: 1.21 | H74: 1.24
B75: 50 | C75: 1.06 | D75: 1.09 | E75: 1.12 | F75: 1.15 | G75: 1.18 | H75: 1.21
B76: 55 | C76: 1.06 | D76: 1.09 | E76: 1.11 | F76: 1.14 | G76: 1.17 | H76: 1.19
B77: 60 | C77: 1.05 | D77: 1.08 | E77: 1.11 | F77: 1.13 | G77: 1.15 | H77: 1.18
B78: 65 | C78: 1.05 | D78: 1.08 | E78: 1.1 | F78: 1.12 | G78: 1.14 | H78: 1.16
B79: 70 | C79: 1.05 | D79: 1.07 | E79: 1.09 | F79: 1.11 | G79: 1.13 | H79: 1.12
B80: 80 | C80: 1.05 | D80: 1.06 | E80: 1.08 | F80: 1.1 | G80: 1.12 | H80: 1.13
B81: 90 | C81: 1.04 | D81: 1.06 | E81: 1.08 | F81: 1.09 | G81: 1.11 | H81: 1.12
B82: 100 | C82: 1.04 | D82: 1.06 | E82: 1.07 | F82: 1.08 | G82: 1.1 | H82: 1.11
B83: 110 | C83: 1.04 | D83: 1.05 | E83: 1.07 | F83: 1.08 | G83: 1.09 | H83: 1.1
B84: 120 | C84: 1.04 | D84: 1.05 | E84: 1.06 | F84: 1.08 | G84: 1.08 | H84: 1.09
B85: 130 | C85: 1.04 | D85: 1.05 | E85: 1.06 | F85: 1.07 | G85: 1.08 | H85: 1.09
B86: 140 | C86: 1.04 | D86: 1.05 | E86: 1.06 | F86: 1.07 | G86: 1.07 | H86: 1.08
B87: 150 | C87: 1.04 | D87: 1.05 | E87: 1.05 | F87: 1.06 | G87: 1.07 | H87: 1.08
C89: C2 | D89: =IF(D29="above",'Koef. C2 Table C3'!E24,"") ->  | H89: automatical calculation ; please check
A91: Table C.4 — Values of C3 for hC = 0,4 m and drain outlet below the waterline
A92: Drain length L (m) | C92: 0.2 | D92: 0.4 | E92: 0.6 | F92: 0.8 | G92: 1 | H92: 1.2
A93: Drain | B93: 25 | C93: 1.49 | D93: 1.55 | E93: 1.61 | F93: 1.67 | G93: 1.72 | H93: 1.77
B94: 30 | C94: 1.48 | D94: 1.53 | E94: 1.57 | F94: 1.62 | G94: 1.66 | H94: 1.71
A95: diameter | B95: 35 | C95: 1.47 | D95: 1.51 | E95: 1.55 | F95: 1.59 | G95: 1.63 | H95: 1.69
B96: 40 | C96: 1.47 | D96: 1.5 | E96: 1.53 | F96: 1.57 | G96: 1.6 | H96: 1.63
A97: d (mm) = | B97: 45 | C97: 1.46 | D97: 1.49 | E97: 1.52 | F97: 1.55 | G97: 1.58 | H97: 1.6
B98: 50 | C98: 1.46 | D98: 1.49 | E98: 1.51 | F98: 1.53 | G98: 1.56 | H98: 1.58
B99: 55 | C99: 1.46 | D99: 1.48 | E99: 1.5 | F99: 1.52 | G99: 1.54 | H99: 1.57
B100: 60 | C100: 1.46 | D100: 1.47 | E100: 1.49 | F100: 1.51 | G100: 1.53 | H100: 1.55
B101: 65 | C101: 1.45 | D101: 1.47 | E101: 1.49 | F101: 1.51 | G101: 1.52 | H101: 1.54
B102: 70 | C102: 1.45 | D102: 1.47 | E102: 1.48 | F102: 1.5 | G102: 1.52 | H102: 1.53
B103: 80 | C103: 1.45 | D103: 1.46 | E103: 1.48 | F103: 1.49 | G103: 1.5 | H103: 1.52
B104: 90 | C104: 1.45 | D104: 1.46 | E104: 1.47 | F104: 1.48 | G104: 1.49 | H104: 1.51
B105: 100 | C105: 1.45 | D105: 1.46 | E105: 1.47 | F105: 1.48 | G105: 1.49 | H105: 1.5
B106: 110 | C106: 1.44 | D106: 1.45 | E106: 1.46 | F106: 1.47 | G106: 1.48 | H106: 1.49
B107: 120 | C107: 1.44 | D107: 1.45 | E107: 1.46 | F107: 1.47 | G107: 1.48 | H107: 1.49
B108: 130 | C108: 1.44 | D108: 1.45 | E108: 1.46 | F108: 1.47 | G108: 1.48 | H108: 1.49
B109: 140 | C109: 1.44 | D109: 1.45 | E109: 1.46 | F109: 1.46 | G109: 1.47 | H109: 1.48
B110: 150 | C110: 1.44 | D110: 1.45 | E110: 1.45 | F110: 1.46 | G110: 1.47 | H110: 1.47
C112: C3 | D112: =IF(D29="below",'Koef. C3 Table C4'!E24,"") ->  | H112: automatical calculation ; please check
A114: Table C.2 — Drain diameter as a function of tref /(C1C2) of tref /(C1C3)
A115: tref /(C1C2) or tref /(C1C3) | B115: 9.47 | C115: 6.06 | D115: 4.21 | E115: 3.09 | F115: 2.37 | G115: 1.87 | H115: 1.52 | I115: 1.25 | J115: 1.05 | K115: 0.9 | L115: 0.77 | M115: 0.67 | N115: 0.59 | O115: 0.47 | P115: 0.38 | Q115: 0.31 | R115: 0.26 | S115: 0.22 | T115: 0.19 | U115: 0.17
A116: Drain diameter (mm) | B116: 20 | C116: 25 | D116: 30 | E116: 35 | F116: 40 | G116: 45 | H116: 50 | I116: 55 | J116: 60 | K116: 65 | L116: 70 | M116: 75 | N116: 80 | O116: 90 | P116: 100 | Q116: 110 | R116: 120 | S116: 130 | T116: 140 | U116: 150
A117: Drain section (cm2) | B117: 3 | C117: 5 | D117: 7 | E117: 10 | F117: 13 | G117: 16 | H117: 20 | I117: 24 | J117: 28 | K117: 33 | L117: 38 | M117: 44 | N117: 50 | O117: 64 | P117: 79 | Q117: 95 | R117: 113 | S117: 133 | T117: 154 | U117: 177
B120: tref /(C1C2) or tref /(C1C3) | D120: =IF(D66="","",IF(D89<>"",D39/D66/D89,D39/D66/D112)) -> 
A122: Results, drain requirements | B122: circular cross section, required | C122: d, min | D122: ='Table C2'!H18 ->  | E122: mm | H122: automatical calculation ; please check
B123: rectangular cross section, required | C123: A, min | D123: =(D122/2)^2*PI()*2 ->  | E123: mm²
C124: =IF(D46>=D123, "requirements fulfilled, PASS", "FAIL") -> 
A125: Requirements sill height
A127: Table 5 — Minimum values hS,min for fixed sills and semi-fixed sills
B129: dimensions in m
A130: Design Category | B130: Sailing monohulls | E130: Non-sailing boats and sailing multihulls
B131: Fixed sill | C131: Semi-fixed sill | E131: Fixed sill | F131: Semi-fixed sill
B132: Top of sill | C132: Top of fixed part | D132: Top of mobile part | E132: Top of sill | F132: Top of fixed part | G132: Top of mobile part
B134: hS,min | C134: hS,min/2 | D134: hS,min | E134: hS,min | F134: hS,min/2 | G134: hS,min
A135: A | B135: 0.3 | C135: 0.15 | D135: 0.3 | E135: 0.2 | F135: 0.1 | G135: 0.2
A136: B | B136: 0.25 | C136: 0.125 | D136: 0.25 | E136: 0.15 | F136: 0.075 | G136: 0.15
A137: C | B137: 0.15 | C137: 0.075 | D137: 0.15 | E137: 0.1 | F137: 0.05 | G137: 0.1
A138: D | B138: 0.05 | C138: 0.025 | D138: 0.05 | E138: 0.05 | F138: 0.025 | G138: 0.05
A141: Cockpit | B141: actual height of fixed sill | C141: hS/2 | D141: ='Worksheet 1'!I23 -> 0.00 | E141: m
B143: required height of fixed sill | C143: hS,min/2 | D143: =IF(D8="power",LOOKUP(D12,A135:A138,F135:F138),IF(AND(D8="sail",'Worksheet 1'!H7="Multihull"),LOOKUP(D12,A135:A138,F135:F138),LOOKUP(D12,A135:A138,C135:C138))) ->  | E143: m
C145: =IF(D141>=D143, "requirements fulfilled, PASS", "FAIL") -> 
B147: semifixed sill heigh mobile part | C147: hS,min | D147: ='Worksheet 1'!I24 -> 0.00 | E147: m
B149: required height of semifixed sill heigh part | C149: hS,min | D149: =IF(D8="Power",LOOKUP(D12,A135:A138,G135:G138),IF(AND(D8="sail",'Worksheet 1'!H7="Multihull"),LOOKUP(D12,A135:A138,G135:G138),LOOKUP(D12,A135:A138,D135:D138))) ->  | E149: m
C151: =IF(D147>=D149, "requirements fulfilled, PASS", "FAIL") -> 

Sheet Table 4 calc (hidden)
K1: Transponierte Tabelle für Abfrage
A3: Typical drain arrangement | C3: Drain outlet above WL, no elbow | D3: Drain outlet above WL, two elbows | E3: Drain outlet below WL, no elbow | F3: Drain outlet below WL, two elbows | G3: Freeing port above WL, no flap | H3: Freeings port above WL, with flap | I3: Drain diameter d (mm) two drains | L3: Drain outlet above WL, no elbow | M3: Drain outlet above WL, two elbows | N3: Drain outlet below WL, no elbow | O3: Drain outlet below WL, two elbows | P3: Freeing port above WL, no flap | Q3: Freeings port above WL, with flap | R3: Drain diameter d (mm) two drains
A4: Values of tref (min) | L4: 0.1 | M4: 0.1 | N4: 0.1 | O4: 0.25 | P4: 0.25 | Q4: 0.3 | R4: 160
B5: 25 | C5: 8.8 | D5: 10 | E5: 10.8 | F5: 11.8 | G5: 10.1 | H5: 15.2 | I5: 25 | L5: 0.2 | M5: 0.2 | N5: 0.2 | O5: 0.3 | P5: 0.3 | Q5: 0.4 | R5: 150
B6: 30 | C6: 5.8 | D6: 6.7 | E6: 7.2 | F6: 7.9 | G6: 7 | H6: 10.5 | I6: 30 | L6: 0.2 | M6: 0.3 | N6: 0.3 | O6: 0.3 | P6: 0.3 | Q6: 0.5 | R6: 140
B7: 35 | C7: 4.1 | D7: 4.7 | E7: 5.1 | F7: 5.7 | G7: 5.2 | H7: 7.7 | I7: 35 | L7: 0.2 | M7: 0.3 | N7: 0.3 | O7: 0.4 | P7: 0.4 | Q7: 0.6 | R7: 130
B8: 40 | C8: 3 | D8: 3.5 | E8: 3.9 | F8: 4.3 | G8: 3.9 | H8: 5.9 | I8: 40 | L8: 0.3 | M8: 0.4 | N8: 0.4 | O8: 0.4 | P8: 0.4 | Q8: 0.7 | R8: 120
B9: 45 | C9: 2.3 | D9: 2.7 | E9: 3 | F9: 3.3 | G9: 3.1 | H9: 4.7 | I9: 45 | L9: 0.3 | M9: 0.4 | N9: 0.5 | O9: 0.5 | P9: 0.5 | Q9: 0.8 | R9: 110
B10: 50 | C10: 1.8 | D10: 2.2 | E10: 2.4 | F10: 2.7 | G10: 2.5 | H10: 3.8 | I10: 50 | L10: 0.4 | M10: 0.5 | N10: 0.6 | O10: 0.6 | P10: 0.6 | Q10: 0.9 | R10: 100
B11: 55 | C11: 1.5 | D11: 1.8 | E11: 2 | F11: 2.2 | G11: 2.1 | H11: 3.1 | I11: 55 | L11: 0.5 | M11: 0.6 | N11: 0.7 | O11: 0.8 | P11: 0.8 | Q11: 1.2 | R11: 90
B12: 60 | C12: 1.2 | D12: 1.5 | E12: 1.6 | F12: 1.8 | G12: 1.8 | H12: 2.6 | I12: 60 | L12: 0.7 | M12: 0.8 | N12: 0.9 | O12: 1 | P12: 1 | Q12: 1.5 | R12: 80
B13: 65 | C13: 1 | D13: 1.3 | E13: 1.4 | F13: 1.5 | G13: 1.5 | H13: 2.2 | I13: 65 | L13: 0.8 | M13: 0.9 | N13: 1 | O13: 1.2 | P13: 1.1 | Q13: 1.7 | R13: 75
B14: 70 | C14: 0.9 | D14: 1.1 | E14: 1.2 | F14: 1.3 | G14: 1.3 | H14: 1.9 | I14: 70 | L14: 0.9 | M14: 1.1 | N14: 1.2 | O14: 1.3 | P14: 1.3 | Q14: 1.9 | R14: 70
B15: 75 | C15: 0.8 | D15: 0.9 | E15: 1 | F15: 1.2 | G15: 1.1 | H15: 1.7 | I15: 75 | L15: 1 | M15: 1.3 | N15: 1.4 | O15: 1.5 | P15: 1.5 | Q15: 2.2 | R15: 65
B16: 80 | C16: 0.7 | D16: 0.8 | E16: 0.9 | F16: 1 | G16: 1 | H16: 1.5 | I16: 80 | L16: 1.2 | M16: 1.5 | N16: 1.6 | O16: 1.8 | P16: 1.8 | Q16: 2.6 | R16: 60
B17: 90 | C17: 0.5 | D17: 0.6 | E17: 0.7 | F17: 0.8 | G17: 0.8 | H17: 1.2 | I17: 90 | L17: 1.5 | M17: 1.8 | N17: 2 | O17: 2.2 | P17: 2.1 | Q17: 3.1 | R17: 55
B18: 100 | C18: 0.4 | D18: 0.5 | E18: 0.6 | F18: 0.6 | G18: 0.6 | H18: 0.9 | I18: 100 | L18: 1.8 | M18: 2.2 | N18: 2.4 | O18: 2.7 | P18: 2.5 | Q18: 3.8 | R18: 50
B19: 110 | C19: 0.3 | D19: 0.4 | E19: 0.5 | F19: 0.5 | G19: 0.5 | H19: 0.8 | I19: 110 | L19: 2.3 | M19: 2.7 | N19: 3 | O19: 3.3 | P19: 3.1 | Q19: 4.7 | R19: 45
B20: 120 | C20: 0.3 | D20: 0.4 | E20: 0.4 | F20: 0.4 | G20: 0.4 | H20: 0.7 | I20: 120 | L20: 3 | M20: 3.5 | N20: 3.9 | O20: 4.3 | P20: 3.9 | Q20: 5.9 | R20: 40
B21: 130 | C21: 0.2 | D21: 0.3 | E21: 0.3 | F21: 0.4 | G21: 0.4 | H21: 0.6 | I21: 130 | L21: 4.1 | M21: 4.7 | N21: 5.1 | O21: 5.7 | P21: 5.2 | Q21: 7.7 | R21: 35
B22: 140 | C22: 0.2 | D22: 0.3 | E22: 0.3 | F22: 0.3 | G22: 0.3 | H22: 0.5 | I22: 140 | L22: 5.8 | M22: 6.7 | N22: 7.2 | O22: 7.9 | P22: 7 | Q22: 10.5 | R22: 30
B23: 150 | C23: 0.2 | D23: 0.2 | E23: 0.2 | F23: 0.3 | G23: 0.3 | H23: 0.4 | I23: 150 | L23: 8.8 | M23: 10 | N23: 10.8 | O23: 11.8 | P23: 10.1 | Q23: 15.2 | R23: 25
L24: min 25mm | M24: min 25mm | N24: min 25mm | O24: min 25mm | P24: min 25mm | Q24: min 25mm
C26: above? below?
B27: tref | D27: elbows? | E27: freeing port
B28: ='cockpit calculation ISO 11812'!D39 -> 0.00000 | C28: ='cockpit calculation ISO 11812'!D29 -> 0 | D28: ='cockpit calculation ISO 11812'!D28 -> 0 | E28: ='cockpit calculation ISO 11812'!D27 -> 
B30: erste Näherung Table 4 value | E30: =IF(B28<>"",IF(AND(C28<>"",D28<>""),IF(AND(D28="without",C28="below"),LOOKUP($B$28,N4:N23,R4:R23),IF(AND(D28="with",C28="below"),LOOKUP($B$28,O4:O23,R4:R23),IF(AND(C28="above",D28="without"),LOOKUP($B$28,L4:L23,R4:R23),IF(AND(C28="above",D28="with"),LOOKUP($B$28,M4:M23,R4:R23)))))),"") -> FALSE | G30: geht auf den größeren Durchmesserwert
B31: Drains | F31: =IF(E30=25,25,IF(E30<=80,E30-5,E30-10)) -> -10 | G31: der nächst kleinere Durchmesser
F32: =IF(B28<>"",IF(AND(C28<>"",D28<>""),IF(AND(D28="without",C28="below"),LOOKUP($B$28,N4:N23,N5:N24),IF(AND(D28="with",C28="below"),LOOKUP($B$28,O4:O23,O5:O24),IF(AND(C28="above",D28="without"),LOOKUP($B$28,L4:L23,L5:L24),IF(AND(C28="above",D28="with"),LOOKUP($B$28,M4:M23,M5:M24)))))),"") -> FALSE | G32: suche nächsten größeren Tabellenwert tref
F33: =IF(B28<>"",IF(AND(C28<>"",D28<>""),IF(AND(D28="without",C28="below"),LOOKUP($B$28,N4:N23,N4:N23),IF(AND(D28="with",C28="below"),LOOKUP($B$28,O4:O23,O4:O23),IF(AND(C28="above",D28="without"),LOOKUP($B$28,L4:L23,L4:L23),IF(AND(C28="above",D28="with"),LOOKUP($B$28,M4:M23,M4:M23)))))),"") -> FALSE | G33: suche nächsten kleineren Tabellenwert tref
B35: erste Näherung Table 4 value
B36: freeing ports | E36: =IF(B28<>"",IF(E28="without flaps",LOOKUP($B$28,P4:P23,R4:R23),IF(E28="with flaps",LOOKUP($B$28,Q4:Q23,R4:R23),"no freeing ports")),"") -> no freeing ports | G36: geht auf den größeren Durchmesserwert
F37: =IF(E36=25,25,IF(E36<=80,E36-5,E36-10)) ->  | G37: der nächst kleinere Durchmesser
F38: =IF(B28<>"",IF(E28="without flaps",LOOKUP($B$28,P4:P23,P5:P24),IF(E28="with flaps",LOOKUP($B$28,Q4:Q23,Q5:Q24),"no freeing ports")),"") -> no freeing ports | G38: suche nächsten größeren Tabellenwert tref
F39: =IF(B28<>"",IF(E28="without flaps",LOOKUP($B$28,P4:P23,P4:P23),IF(E28="with flaps",LOOKUP($B$28,Q4:Q23,Q4:Q23),"no freeing ports")),"") -> no freeing ports | G39: suche nächsten kleineren Tabellenwert tref

Sheet Koeffient C1 (hidden)
A1: hc | B1: C1
A2: 0.20 | B2: 0.83
A3: 0.30 | B3: 0.98
A4: 0.40 | B4: 1.00
A5: 0.50 | B5: 0.99
A6: 0.60 | B6: 0.97
A7: 0.70 | B7: 0.94
A8: 0.80 | B8: 0.91
A9: 0.90 | B9: 0.89
A10: 1.00 | B10: 0.86
A11: 1.10 | B11: 0.84
A12: 1.20 | B12: 0.82
A13: 1.30 | B13: 0.80
A14: 1.40 | B14: 0.78
A15: 1.50 | B15: 0.77
A16: 1.60 | B16: 0.75
A17: 1.70 | B17: 0.73
A18: 1.80 | B18: 0.72
A19: 1.90 | B19: 0.71
A20: 2.00 | B20: 0.69
B28: Table C.1 — Values of C1 as a function of h
A30: hC (m) | B30: 0.2 | C30: 0.3 | D30: 0.4 | E30: 0.5 | F30: 0.6 | G30: 0.7 | H30: 0.8 | I30: 0.9 | J30: 1 | K30: 1.1 | L30: 1.2 | M30: 1.3 | N30: 1.4 | O30: 1.5 | P30: 1.6 | Q30: 1.7 | R30: 1.8 | S30: 1.9 | T30: 2
A31: C1 = (t1,hC/t1,04) | B31: 0.83 | C31: 0.98 | D31: 1 | E31: 0.99 | F31: 0.97 | G31: 0.94 | H31: 0.91 | I31: 0.89 | J31: 0.86 | K31: 0.84 | L31: 0.82 | M31: 0.8 | N31: 0.78 | O31: 0.77 | P31: 0.75 | Q31: 0.73 | R31: 0.72 | S31: 0.71 | T31: 0.69
B33: hC (m) | C33: C1 = (t1,hC/t1,04) | G33: hc = | H33: Koef. C1 =
B34: 0.1 | C34: 0.83
B35: 0.11 | C35: 0.83
B36: 0.12 | C36: 0.83
B37: 0.13 | C37: 0.83
B38: 0.14 | C38: 0.83
B39: 0.15 | C39: 0.83
B40: 0.16 | C40: 0.83
B41: 0.17 | C41: 0.83
B42: 0.18 | C42: 0.83
B43: 0.19 | C43: 0.83
B44: 0.2 | C44: 0.83 | G44: ='cockpit calculation ISO 11812'!D15 -> 0 | H44: =LOOKUP(G44,B34:B224,C34:C224) -> 
B45: 0.21 | C45: =C44+D45 -> 0.845 | D45: =(C54-C44)/10 -> 0.015
B46: 0.22 | C46: =C45+D45 -> 0.86
B47: 0.23 | C47: =C46+D45 -> 0.875
B48: 0.24 | C48: =C47+D45 -> 0.89
B49: 0.25 | C49: =C48+D45 -> 0.905
B50: 0.26 | C50: =C49+D45 -> 0.92
B51: 0.27 | C51: =C50+D45 -> 0.935
B52: 0.28 | C52: =C51+D45 -> 0.95
B53: 0.29 | C53: =C52+D45 -> 0.965
B54: 0.3 | C54: 0.98
B55: 0.31 | C55: =C54+D55 -> 0.982 | D55: =(C64-C54)/10 -> 0.002
B56: 0.32 | C56: =C55+D55 -> 0.984
B57: 0.33 | C57: =C56+D55 -> 0.986
B58: 0.34 | C58: =C57+D55 -> 0.988
B59: 0.35 | C59: =C58+D55 -> 0.99
B60: 0.36 | C60: =C59+D55 -> 0.992
B61: 0.37 | C61: =C60+D55 -> 0.994
B62: 0.38 | C62: =C61+D55 -> 0.996
B63: 0.39 | C63: =C62+D55 -> 0.998
B64: 0.4 | C64: 1
B65: 0.41 | C65: =C64+D65 -> 0.999 | D65: =(C74-C64)/10 -> -0.001
B66: 0.42 | C66: =C65+D65 -> 0.998
B67: 0.43 | C67: =C66+D65 -> 0.997
B68: 0.44 | C68: =C67+D65 -> 0.996
B69: 0.45 | C69: =C68+D65 -> 0.995
B70: 0.46 | C70: =C69+D65 -> 0.994
B71: 0.47 | C71: =C70+D65 -> 0.993
B72: 0.48 | C72: =C71+D65 -> 0.992
B73: 0.49 | C73: =C72+D65 -> 0.991
B74: 0.5 | C74: 0.99
B75: 0.51 | C75: =C74+D75 -> 0.988 | D75: =(C84-C74)/10 -> -0.002
B76: 0.52 | C76: =C75+D75 -> 0.986
B77: 0.53 | C77: =C76+D75 -> 0.984
B78: 0.54 | C78: =C77+D75 -> 0.982
B79: 0.55 | C79: =C78+D75 -> 0.98
B80: 0.56 | C80: =C79+D75 -> 0.978
B81: 0.57 | C81: =C80+D75 -> 0.976
B82: 0.58 | C82: =C81+D75 -> 0.974
B83: 0.59 | C83: =C82+D75 -> 0.972
B84: 0.6 | C84: 0.97
B85: 0.61 | C85: =C84+D85 -> 0.967 | D85: =(C94-C84)/10 -> -0.003
B86: 0.62 | C86: =C85+D85 -> 0.964
B87: 0.63 | C87: =C86+D85 -> 0.961
B88: 0.64 | C88: =C87+D85 -> 0.958
B89: 0.65 | C89: =C88+D85 -> 0.955
B90: 0.66 | C90: =C89+D85 -> 0.952
B91: 0.67 | C91: =C90+D85 -> 0.949
B92: 0.68 | C92: =C91+D85 -> 0.946
B93: 0.69 | C93: =C92+D85 -> 0.943
B94: 0.7 | C94: 0.94
B95: 0.71 | C95: =C94+D95 -> 0.937 | D95: =(C104-C94)/10 -> -0.003
B96: 0.72 | C96: =C95+D95 -> 0.934
B97: 0.73 | C97: =C96+D95 -> 0.931
B98: 0.74 | C98: =C97+D95 -> 0.928
B99: 0.75 | C99: =C98+D95 -> 0.925
B100: 0.76 | C100: =C99+D95 -> 0.922
B101: 0.77 | C101: =C100+D95 -> 0.919
B102: 0.78 | C102: =C101+D95 -> 0.916
B103: 0.79 | C103: =C102+D95 -> 0.913
B104: 0.8 | C104: 0.91
B105: 0.81 | C105: =C104+D105 -> 0.908 | D105: =(C114-C104)/10 -> -0.002
B106: 0.82 | C106: =C105+D105 -> 0.906
B107: 0.83 | C107: =C106+D105 -> 0.904
B108: 0.84 | C108: =C107+D105 -> 0.902
B109: 0.85 | C109: =C108+D105 -> 0.9
B110: 0.86 | C110: =C109+D105 -> 0.898
B111: 0.87 | C111: =C110+D105 -> 0.896
B112: 0.88 | C112: =C111+D105 -> 0.894
B113: 0.89 | C113: =C112+D105 -> 0.892
B114: 0.9 | C114: 0.89
B115: 0.91 | C115: =C114+D115 -> 0.887 | D115: =(C124-C114)/10 -> -0.003
B116: 0.92 | C116: =C115+D115 -> 0.884
B117: 0.93 | C117: =C116+D115 -> 0.881
B118: 0.94 | C118: =C117+D115 -> 0.878
B119: 0.95 | C119: =C118+D115 -> 0.875
B120: 0.96 | C120: =C119+D115 -> 0.872
B121: 0.97 | C121: =C120+D115 -> 0.869
B122: 0.98 | C122: =C121+D115 -> 0.866
B123: 0.99 | C123: =C122+D115 -> 0.863
B124: 1 | C124: 0.86
B125: 1.01 | C125: =C124+D125 -> 0.858 | D125: =(C134-C124)/10 -> -0.002
B126: 1.02 | C126: =C125+D125 -> 0.856
B127: 1.03 | C127: =C126+D125 -> 0.854
B128: 1.04 | C128: =C127+D125 -> 0.852
B129: 1.05 | C129: =C128+D125 -> 0.85
B130: 1.06 | C130: =C129+D125 -> 0.848
B131: 1.07 | C131: =C130+D125 -> 0.846
B132: 1.08 | C132: =C131+D125 -> 0.844
B133: 1.09 | C133: =C132+D125 -> 0.842
B134: 1.1 | C134: 0.84
B135: 1.11 | C135: =C134+D135 -> 0.838 | D135: =(C144-C134)/10 -> -0.002
B136: 1.12 | C136: =C135+D135 -> 0.836
B137: 1.13 | C137: =C136+D135 -> 0.834
B138: 1.14 | C138: =C137+D135 -> 0.832
B139: 1.15 | C139: =C138+D135 -> 0.83
B140: 1.16 | C140: =C139+D135 -> 0.828
B141: 1.17 | C141: =C140+D135 -> 0.826
B142: 1.18 | C142: =C141+D135 -> 0.824
B143: 1.19 | C143: =C142+D135 -> 0.822
B144: 1.2 | C144: 0.82
B145: 1.21 | C145: =C144+D145 -> 0.818 | D145: =(C154-C144)/10 -> -0.002
B146: 1.22 | C146: =C145+D145 -> 0.816
B147: 1.23 | C147: =C146+D145 -> 0.814
B148: 1.24 | C148: =C147+D145 -> 0.812
B149: 1.25 | C149: =C148+D145 -> 0.81
B150: 1.26 | C150: =C149+D145 -> 0.808
B151: 1.27 | C151: =C150+D145 -> 0.806
B152: 1.28 | C152: =C151+D145 -> 0.804
B153: 1.29 | C153: =C152+D145 -> 0.802
B154: 1.3 | C154: 0.8
B155: 1.31 | C155: =C154+D155 -> 0.798 | D155: =(C164-C154)/10 -> -0.002
B156: 1.32 | C156: =C155+D155 -> 0.796
B157: 1.33 | C157: =C156+D155 -> 0.794
B158: 1.34 | C158: =C157+D155 -> 0.792
B159: 1.35 | C159: =C158+D155 -> 0.79
B160: 1.36 | C160: =C159+D155 -> 0.788
B161: 1.37 | C161: =C160+D155 -> 0.786
B162: 1.38 | C162: =C161+D155 -> 0.784
B163: 1.39 | C163: =C162+D155 -> 0.782
B164: 1.4 | C164: 0.78
B165: 1.41 | C165: =C164+D165 -> 0.779 | D165: =(C174-C164)/10 -> -0.001
B166: 1.42 | C166: =C165+D165 -> 0.778
B167: 1.43 | C167: =C166+D165 -> 0.777
B168: 1.44 | C168: =C167+D165 -> 0.776
B169: 1.45 | C169: =C168+D165 -> 0.775
B170: 1.46 | C170: =C169+D165 -> 0.774
B171: 1.47 | C171: =C170+D165 -> 0.773
B172: 1.48 | C172: =C171+D165 -> 0.772
B173: 1.49 | C173: =C172+D165 -> 0.771
B174: 1.5 | C174: 0.77
B175: 1.51 | C175: =C174+D175 -> 0.768 | D175: =(C184-C174)/10 -> -0.002
B176: 1.52 | C176: =C175+D175 -> 0.766
B177: 1.53 | C177: =C176+D175 -> 0.764
B178: 1.54 | C178: =C177+D175 -> 0.762
B179: 1.55 | C179: =C178+D175 -> 0.76
B180: 1.56 | C180: =C179+D175 -> 0.758
B181: 1.57 | C181: =C180+D175 -> 0.756
B182: 1.58 | C182: =C181+D175 -> 0.754
B183: 1.59 | C183: =C182+D175 -> 0.752
B184: 1.6 | C184: 0.75
B185: 1.61 | C185: =C184+D185 -> 0.748 | D185: =(C194-C184)/10 -> -0.002
B186: 1.62 | C186: =C185+D185 -> 0.746
B187: 1.63 | C187: =C186+D185 -> 0.744
B188: 1.64 | C188: =C187+D185 -> 0.742
B189: 1.65 | C189: =C188+D185 -> 0.74
B190: 1.66 | C190: =C189+D185 -> 0.738
B191: 1.67 | C191: =C190+D185 -> 0.736
B192: 1.68 | C192: =C191+D185 -> 0.734
B193: 1.69 | C193: =C192+D185 -> 0.732
B194: 1.7 | C194: 0.73
B195: 1.71 | C195: =C194+D195 -> 0.729 | D195: =(C204-C194)/10 -> -0.001
B196: 1.72 | C196: =C195+D195 -> 0.728
B197: 1.73 | C197: =C196+D195 -> 0.727
B198: 1.74 | C198: =C197+D195 -> 0.726
B199: 1.75 | C199: =C198+D195 -> 0.725
B200: 1.76 | C200: =C199+D195 -> 0.724
B201: 1.77 | C201: =C200+D195 -> 0.723
B202: 1.78 | C202: =C201+D195 -> 0.722
B203: 1.79 | C203: =C202+D195 -> 0.721
B204: 1.8 | C204: 0.72
B205: 1.81 | C205: =C204+D205 -> 0.719 | D205: =(C214-C204)/10 -> -0.001
B206: 1.82 | C206: =C205+D205 -> 0.718
B207: 1.83 | C207: =C206+D205 -> 0.717
B208: 1.84 | C208: =C207+D205 -> 0.716
B209: 1.85 | C209: =C208+D205 -> 0.715
... 15 more rows

Sheet C10 (hidden)
B1: hc | C1: C1
A2: 1 | B2: 0.20 | C2: 0.83 | D2: =(0.000005*B2*B2*B2*B2*B2)-(0.0003*B2^4)+(0.0063*B2^3)-(0.0627*B2^2)+(0.2559*B2)+0.6457 -> 0.69442 | E2: =(0.000005*A2*A2*A2*A2*A2)-(0.0003*A2^4)+(0.0063*A2^3)-(0.0627*A2^2)+(0.2559*A2)+0.6457 -> 0.84491
A3: 2 | B3: 0.30 | C3: 0.98 | D3: =(0.000005*B3*B3*B3*B3*B3)-(0.0003*B3^4)+(0.0063*B3^3)-(0.0627*B3^2)+(0.2559*B3)+0.6457 -> 0.71699 | E3: =(0.000005*A3*A3*A3*A3*A3)-(0.0003*A3^4)+(0.0063*A3^3)-(0.0627*A3^2)+(0.2559*A3)+0.6457 -> 0.95246
A4: 3 | B4: 0.40 | C4: 1.00 | D4: 0.73842 | E4: 0.99612
A5: 4 | B5: 0.50 | C5: 0.99 | D5: 0.75874 | E5: 0.99762
A6: 5 | B6: 0.60 | C6: 0.97 | D6: 0.77799 | E6: 0.97333
A7: 6 | B7: 0.70 | C7: 0.94 | D7: 0.79620 | E7: 0.93478
A8: 7 | B8: 0.80 | C8: 0.91 | D8: 0.81340 | E8: 0.88934
A9: 8 | B9: 0.90 | C9: 0.89 | D9: 0.82962 | E9: 0.84074
A10: 9 | B10: 1.00 | C10: 0.86 | D10: 0.84491 | E10: 0.78975
A11: 10 | B11: 1.10 | C11: 0.84 | D11: 0.85928 | E11: 0.73470
A12: 11 | B12: 1.20 | C12: 0.82 | D12: 0.87277 | E12: 0.67216
A13: 12 | B13: 1.30 | C13: 0.80 | D13: 0.88541 | E13: 0.59746
A14: 13 | B14: 1.40 | C14: 0.78 | D14: 0.89723 | E14: 0.50537
A15: 14 | B15: 1.50 | C15: 0.77 | D15: 0.90826 | E15: 0.39062
A16: 15 | B16: 1.60 | C16: 0.75 | D16: 0.91852 | E16: 0.24858
A17: 16 | B17: 1.70 | C17: 0.73 | D17: 0.92804 | E17: 0.07578
A18: 17 | B18: 1.80 | C18: 0.72 | D18: 0.93686 | E18: -0.12941
A19: 18 | B19: 1.90 | C19: 0.71 | D19: 0.94499 | E19: -0.36626
A20: 19 | B20: 2.00 | C20: 0.69 | D20: 0.95246 | E20: -0.63100

Sheet Table C2 (hidden)
B1: Table C.2 — Drain diameter as a function of tref /(C1C2) of tref /(C1C3)
A3: tref /(C1C2) or tref /(C1C3) | B3: 9.47 | C3: 6.06 | D3: 4.21 | E3: 3.09 | F3: 2.37 | G3: 1.87 | H3: 1.52 | I3: 1.25 | J3: 1.05 | K3: 0.9 | L3: 0.77 | M3: 0.67 | N3: 0.59 | O3: 0.47 | P3: 0.38 | Q3: 0.31 | R3: 0.26 | S3: 0.22 | T3: 0.19 | U3: 0.17
A4: Drain diameter (mm) | B4: 20 | C4: 25 | D4: 30 | E4: 35 | F4: 40 | G4: 45 | H4: 50 | I4: 55 | J4: 60 | K4: 65 | L4: 70 | M4: 75 | N4: 80 | O4: 90 | P4: 100 | Q4: 110 | R4: 120 | S4: 130 | T4: 140 | U4: 150
E7: tref /(C1C2) or tref /(C1C3) | F7: Drain diameter (mm) | H7: tref /(C1C2) or tref /(C1C3) | I7: Berechneter Wert aus tref und C1 & C2(C3)
E8: 0.170 | F8: 150 | G8: =(E18-E8)/10 -> 0.002 | H8: ='cockpit calculation ISO 11812'!G40 -> 
E9: 0.172 | F9: 149
E10: 0.174 | F10: 148
E11: 0.176 | F11: 147
E12: 0.178 | F12: 146
E13: 0.180 | F13: 145
E14: 0.182 | F14: 144
E15: 0.184 | F15: 143
E16: 0.186 | F16: 142
E17: 0.188 | F17: 141
E18: 0.190 | F18: 140 | G18: =(E28-E18)/10 -> 0.003 | H18: =LOOKUP(H8,E8:E138,F8:F138) ->  | I18: auf 1mm genauer Tabellenwert drain diameter aus table c.2
E19: 0.193 | F19: 139
E20: 0.196 | F20: 138
E21: 0.199 | F21: 137
E22: 0.202 | F22: 136
E23: 0.205 | F23: 135
E24: 0.208 | F24: 134
E25: 0.211 | F25: 133
E26: 0.214 | F26: 132
E27: 0.217 | F27: 131
E28: 0.220 | F28: 130 | G28: =(E38-E28)/10 -> 0.004
E29: 0.224 | F29: 129
E30: 0.228 | F30: 128
E31: 0.232 | F31: 127
E32: 0.236 | F32: 126
E33: 0.240 | F33: 125
E34: 0.244 | F34: 124
E35: 0.248 | F35: 123
E36: 0.252 | F36: 122
E37: 0.256 | F37: 121
E38: 0.260 | F38: 120 | G38: =(E48-E38)/10 -> 0.005
E39: 0.265 | F39: 119
E40: 0.270 | F40: 118
E41: 0.275 | F41: 117
E42: 0.280 | F42: 116
E43: 0.285 | F43: 115
E44: 0.290 | F44: 114
E45: 0.295 | F45: 113
E46: 0.300 | F46: 112
E47: 0.305 | F47: 111
E48: 0.310 | F48: 110 | G48: =(E58-E48)/10 -> 0.007
E49: 0.317 | F49: 109
E50: 0.324 | F50: 108
E51: 0.331 | F51: 107
E52: 0.338 | F52: 106
E53: 0.345 | F53: 105
E54: 0.352 | F54: 104
E55: 0.359 | F55: 103
E56: 0.366 | F56: 102
E57: 0.373 | F57: 101
E58: 0.380 | F58: 100 | G58: =(E68-E58)/10 -> 0.009
E59: 0.389 | F59: 99
E60: 0.398 | F60: 98
E61: 0.407 | F61: 97
E62: 0.416 | F62: 96
E63: 0.425 | F63: 95
E64: 0.434 | F64: 94
E65: 0.443 | F65: 93
E66: 0.452 | F66: 92
E67: 0.461 | F67: 91
E68: 0.470 | F68: 90 | G68: =(E78-E68)/10 -> 0.012
E69: 0.482 | F69: 89
E70: 0.494 | F70: 88
E71: 0.506 | F71: 87
E72: 0.518 | F72: 86
E73: 0.530 | F73: 85
E74: 0.542 | F74: 84
E75: 0.554 | F75: 83
E76: 0.566 | F76: 82
E77: 0.578 | F77: 81
E78: 0.590 | F78: 80 | G78: =(E83-E78)/5 -> 0.016
E79: 0.606 | F79: 79
E80: 0.622 | F80: 78
E81: 0.638 | F81: 77
E82: 0.654 | F82: 76
E83: 0.670 | F83: 75 | G83: =(E88-E83)/5 -> 0.02
E84: 0.690 | F84: 74
E85: 0.710 | F85: 73
E86: 0.730 | F86: 72
E87: 0.750 | F87: 71
E88: 0.770 | F88: 70 | G88: =(E93-E88)/5 -> 0.026
E89: 0.796 | F89: 69
E90: 0.822 | F90: 68
E91: 0.848 | F91: 67
E92: 0.874 | F92: 66
E93: 0.900 | F93: 65 | G93: =(E98-E93)/5 -> 0.03
E94: 0.930 | F94: 64
E95: 0.960 | F95: 63
E96: 0.990 | F96: 62
E97: 1.020 | F97: 61
E98: 1.050 | F98: 60 | G98: =(E103-E98)/5 -> 0.04
E99: 1.090 | F99: 59
E100: 1.130 | F100: 58
E101: 1.170 | F101: 57
E102: 1.210 | F102: 56
E103: 1.250 | F103: 55 | G103: =(E108-E103)/5 -> 0.054
E104: 1.304 | F104: 54
E105: 1.358 | F105: 53
E106: 1.412 | F106: 52
E107: 1.466 | F107: 51
E108: 1.520 | F108: 50 | G108: =(E113-E108)/5 -> 0.07
E109: 1.590 | F109: 49
E110: 1.660 | F110: 48
E111: 1.730 | F111: 47
E112: 1.800 | F112: 46
E113: 1.870 | F113: 45 | G113: =(E118-E113)/5 -> 0.1
E114: 1.970 | F114: 44
E115: 2.070 | F115: 43
E116: 2.170 | F116: 42
E117: 2.270 | F117: 41
E118: 2.370 | F118: 40 | G118: =(E123-E118)/5 -> 0.144
E119: 2.514 | F119: 39
E120: 2.658 | F120: 38
E121: 2.802 | F121: 37
E122: 2.946 | F122: 36
E123: 3.090 | F123: 35 | G123: =(E128-E123)/5 -> 0.224
E124: 3.314 | F124: 34
E125: 3.538 | F125: 33
E126: 3.762 | F126: 32
E127: 3.986 | F127: 31
E128: 4.210 | F128: 30 | G128: =(E133-E128)/5 -> 0.37
E129: 4.580 | F129: 29
E130: 4.950 | F130: 28
E131: 5.320 | F131: 27
E132: 5.690 | F132: 26
E133: 6.060 | F133: 25 | G133: =(E138-E133)/5 -> 0.682
E134: 6.742 | F134: 24
E135: 7.424 | F135: 23
E136: 8.106 | F136: 22
E137: 8.788 | F137: 21
E138: 9.470 | F138: 20

Sheet Koef. C2 Table C3 (hidden)
B3: Table C.3 — Values of C2 for hC = 0,4 m and drain outlet above the waterline
A4: Drain length L(m) | B4: Drain lengthL (m) | D4: 0.2 | E4: 0.4 | F4: 0.6 | G4: 0.8 | H4: 1 | I4: 1.2
B5: Drain | C5: 25 | D5: 1.1 | E5: 1.18 | F5: 1.25 | G5: 1.32 | H5: 1.38 | I5: 1.45
C6: 30 | D6: 1.09 | E6: 1.15 | F6: 1.21 | G6: 1.26 | H6: 1.31 | I6: 1.37
B7: diameter | C7: 35 | D7: 1.08 | E7: 1.13 | F7: 1.18 | G7: 1.22 | H7: 1.27 | I7: 1.31
C8: 40 | D8: 1.07 | E8: 1.11 | F8: 1.15 | G8: 1.19 | H8: 1.23 | I8: 1.27
B9: d (mm) = | C9: 45 | D9: 1.07 | E9: 1.1 | F9: 1.14 | G9: 1.17 | H9: 1.21 | I9: 1.24
C10: 50 | D10: 1.06 | E10: 1.09 | F10: 1.12 | G10: 1.15 | H10: 1.18 | I10: 1.21
C11: 55 | D11: 1.06 | E11: 1.09 | F11: 1.11 | G11: 1.14 | H11: 1.17 | I11: 1.19
C12: 60 | D12: 1.05 | E12: 1.08 | F12: 1.11 | G12: 1.13 | H12: 1.15 | I12: 1.18
C13: 65 | D13: 1.05 | E13: 1.08 | F13: 1.1 | G13: 1.12 | H13: 1.14 | I13: 1.16
C14: 70 | D14: 1.05 | E14: 1.07 | F14: 1.09 | G14: 1.11 | H14: 1.13 | I14: 1.12
C15: 80 | D15: 1.05 | E15: 1.06 | F15: 1.08 | G15: 1.1 | H15: 1.12 | I15: 1.13
C16: 90 | D16: 1.04 | E16: 1.06 | F16: 1.08 | G16: 1.09 | H16: 1.11 | I16: 1.12
C17: 100 | D17: 1.04 | E17: 1.06 | F17: 1.07 | G17: 1.08 | H17: 1.1 | I17: 1.11
C18: 110 | D18: 1.04 | E18: 1.05 | F18: 1.07 | G18: 1.08 | H18: 1.09 | I18: 1.1
C19: 120 | D19: 1.04 | E19: 1.05 | F19: 1.06 | G19: 1.08 | H19: 1.08 | I19: 1.09
C20: 130 | D20: 1.04 | E20: 1.05 | F20: 1.06 | G20: 1.07 | H20: 1.08 | I20: 1.09
C21: 140 | D21: 1.04 | E21: 1.05 | F21: 1.06 | G21: 1.07 | H21: 1.07 | I21: 1.08
C22: 150 | D22: 1.04 | E22: 1.05 | F22: 1.05 | G22: 1.06 | H22: 1.07 | I22: 1.08
D24: C2 | E24: =IF(D26=0,"",VLOOKUP(D29,C5:I22,D28,TRUE)) -> 
E25: rounded
B26: actual drain length | D26: ='cockpit calculation ISO 11812'!D30 ->  | E26: =EVEN(ROUNDDOWN(D26,1)*10)/10 -> 
B27: rounded drain length | D27: =IF(E26>1.2,1.2,E26) ->  | F27: z.Zt 1,2 größter Tabellenwert; zu ändern
B28: suchkriterium | D28: =D27/0.2+1 -> 
B29: first value drain diameter | D29: ='cockpit calculation ISO 11812'!D41 -> FALSE

Sheet Koef. C3 Table C4 (hidden)
B3: Table C.4 — Values of C3 for hC = 0,4 m and drain outlet below the waterline
A4: Drain length L(m) | B4: Drain length L (m) | D4: 0.2 | E4: 0.4 | F4: 0.6 | G4: 0.8 | H4: 1 | I4: 1.2
B5: Drain | C5: 25 | D5: 1.49 | E5: 1.55 | F5: 1.61 | G5: 1.67 | H5: 1.72 | I5: 1.77
C6: 30 | D6: 1.48 | E6: 1.53 | F6: 1.57 | G6: 1.62 | H6: 1.66 | I6: 1.71
B7: diameter | C7: 35 | D7: 1.47 | E7: 1.51 | F7: 1.55 | G7: 1.59 | H7: 1.63 | I7: 1.69
C8: 40 | D8: 1.47 | E8: 1.5 | F8: 1.53 | G8: 1.57 | H8: 1.6 | I8: 1.63
B9: d (mm) = | C9: 45 | D9: 1.46 | E9: 1.49 | F9: 1.52 | G9: 1.55 | H9: 1.58 | I9: 1.6
C10: 50 | D10: 1.46 | E10: 1.49 | F10: 1.51 | G10: 1.53 | H10: 1.56 | I10: 1.58
C11: 55 | D11: 1.46 | E11: 1.48 | F11: 1.5 | G11: 1.52 | H11: 1.54 | I11: 1.57
C12: 60 | D12: 1.46 | E12: 1.47 | F12: 1.49 | G12: 1.51 | H12: 1.53 | I12: 1.55
C13: 65 | D13: 1.45 | E13: 1.47 | F13: 1.49 | G13: 1.51 | H13: 1.52 | I13: 1.54
C14: 70 | D14: 1.45 | E14: 1.47 | F14: 1.48 | G14: 1.5 | H14: 1.52 | I14: 1.53
C15: 80 | D15: 1.45 | E15: 1.46 | F15: 1.48 | G15: 1.49 | H15: 1.5 | I15: 1.52
C16: 90 | D16: 1.45 | E16: 1.46 | F16: 1.47 | G16: 1.48 | H16: 1.49 | I16: 1.51
C17: 100 | D17: 1.45 | E17: 1.46 | F17: 1.47 | G17: 1.48 | H17: 1.49 | I17: 1.5
C18: 110 | D18: 1.44 | E18: 1.45 | F18: 1.46 | G18: 1.47 | H18: 1.48 | I18: 1.49
C19: 120 | D19: 1.44 | E19: 1.45 | F19: 1.46 | G19: 1.47 | H19: 1.48 | I19: 1.49
C20: 130 | D20: 1.44 | E20: 1.45 | F20: 1.46 | G20: 1.47 | H20: 1.48 | I20: 1.49
C21: 140 | D21: 1.44 | E21: 1.45 | F21: 1.46 | G21: 1.46 | H21: 1.47 | I21: 1.48
C22: 150 | D22: 1.44 | E22: 1.45 | F22: 1.45 | G22: 1.46 | H22: 1.47 | I22: 1.47
D24: C2 | E24: =VLOOKUP(D29,C5:I22,D28,TRUE) -> 
E25: rounded
B26: actual drain length | D26: ='cockpit calculation ISO 11812'!D30 ->  | E26: =EVEN(ROUNDDOWN(D26,1)*10)/10 -> 
B27: rounded drain length | D27: =IF(E26>1.2,1.2,E26) ->  | F27: z.Zt 1,2 größter Tabellenwert; zu ändern
B28: suchkriterium | D28: =D27/0.2+1 -> 
B29: first value drain diameter | D29: ='cockpit calculation ISO 11812'!D41 -> FALSE
